bitfinex-derivatives/quotes_SOLF0:USTF0_20250606
["timestamp","ask_amount","ask_price","bid_price","bid_amount"]
[1749178659271,6.8271,146.43,146.42,0.04591363]
[1749178659468,12.80925524,146.43,146.42,0.04591363]
[1749178659873,20.5237692,146.43,146.42,0.04591363]
[1749178660067,12.80925524,146.43,146.42,0.04591363]
[1749178661062,6.8271,146.43,146.42,0.04591363]
[1749178661466,0.04554452,146.44,146.42,0.04591363]
[1749178661866,0.04554452,146.44,146.42,4.97339627]
[1749178662661,0.04554452,146.44,146.42,11.80049627]
[1749178663066,0.04554452,146.44,146.42,4.97339627]
[1749178663266,0.04554452,146.44,146.43,6.8267]
[1749178665272,0.04554452,146.44,146.43,11.75418264]
[1749178666076,0.04554452,146.44,146.43,6.8267]
[1749178674985,0.04554452,146.44,146.43,11.75418264]
[1749178676585,0.04554452,146.44,146.43,6.8267]
[1749178676885,0.04554452,146.44,146.43,11.75418264]
[1749178677577,0.04554452,146.44,146.43,6.8267]
[1749178677781,0.04554452,146.44,146.43,11.75418264]
[1749178683590,5.95330702,146.48,146.43,4.92748264]
[1749178683797,40.02,146.51,146.47,4.92748264]
[1749178683996,5.95294977,146.5,146.47,4.92748264]
[1749178684193,40.02,146.51,146.48,6.8241]
[1749178684494,5.95272652,146.5,146.47,4.92748264]
[1749178684696,5.95314209,146.49,146.48,0.04691696]
[1749178684896,5.95314209,146.49,146.47,0.05186628]
[1749178685090,0.05230582,146.5,146.47,0.05186628]
[1749178685285,12.77659136,146.49,146.47,0.05186628]
[1749178685493,6.8239,146.49,146.47,0.05186628]
[1749178685797,6.87590582,146.5,146.47,0.05186628]
[1749178685991,5.95610716,146.49,146.47,6.87666628]
[1749178686189,6.87590582,146.5,146.47,6.87666628]
[1749178686389,6.87590582,146.5,146.47,0.05186628]
[1749178686590,0.05230582,146.5,146.47,6.87646628]
[1749178686996,0.05230582,146.5,146.47,0.05186628]
[1749178687295,0.05230582,146.5,146.47,4.97934892]
[1749178687495,0.05230582,146.5,146.49,4.92748264]
[1749178687895,0.05230582,146.5,146.49,11.75138264]
[1749178688689,0.05230582,146.5,146.47,0.05186628]
[1749178688886,0.05230582,146.5,146.47,4.97934892]
[1749178689291,0.05230582,146.5,146.49,4.92748264]
[1749178689800,0.05230582,146.5,146.49,11.75138264]
[1749178690188,2.2558,146.54,146.49,4.92748264]
[1749178690392,2.1241,146.58,146.53,4.92748264]
[1749178690592,2.1241,146.58,146.55,4.92748264]
[1749178690790,2.1241,146.58,146.55,11.74858264]
[1749178691195,2.1241,146.58,146.54,4.92748264]
[1749178691395,2.1729261,146.58,146.55,0.04652537]
[1749178692192,6.8202,146.57,146.55,0.04652537]
[1749178693308,2.1729261,146.58,146.55,0.04652537]
[1749178693309,6.8207,146.56,146.55,0.04652537]
[1749178693500,12.76233654,146.56,146.55,0.04652537]
[1749178693703,6.8207,146.56,146.55,0.04652537]
[1749178693894,12.77221665,146.56,146.55,0.04652537]
[1749178694402,6.8213,146.55,146.51,6.8228]
[1749178694594,6.8213,146.55,146.51,11.75028264]
[1749178695203,6.8213,146.55,146.51,6.8228]
[1749178695401,0.04836141,146.54,146.52,11.80091669]
[1749178695901,0.04836141,146.54,146.52,4.97851669]
[1749178696299,0.04836141,146.54,146.52,0.05103405]
[1749178696501,0.04836141,146.54,146.52,4.97851669]
[1749178698796,0.04836141,146.54,146.53,6.8221]
[1749178701314,0.04836141,146.54,146.52,6.87343405]
[1749178701497,0.04836141,146.54,146.52,11.80091669]
[1749178702208,0.04836141,146.54,146.52,4.97851669]
[1749178702501,0.04836141,146.54,146.52,0.05103405]
[1749178702700,6.87026141,146.54,146.52,0.05103405]
[1749178703907,0.04836141,146.54,146.52,0.05103405]
[1749178704804,0.04836141,146.54,146.52,6.87353405]
[1749178705406,0.04836141,146.54,146.52,11.80101669]
[1749178705609,0.04836141,146.54,146.52,0.05103405]
[1749178706109,39.10836141,146.54,146.52,0.05103405]
[1749178706312,44.03584405,146.54,146.47,4.92748264]
[1749178706606,44.03584405,146.54,146.44,45.6985]
[1749178706809,6.8231,146.51,146.47,11.75198264]
[1749178707011,43.98748264,146.54,146.47,4.92748264]
[1749178707306,0.04472,146.52,146.49,0.04854377]
[1749178707506,6.86742,146.52,146.49,0.04854377]
[1749178708712,6.823,146.51,146.49,0.04854377]
[1749178709207,39.06,146.5,146.44,4.92748264]
[1749178709411,46.29588264,146.5,146.44,6.8262]
[1749178709601,2.1512,146.49,146.44,6.8262]
[1749178710202,6.8247,146.48,146.44,6.8262]
[1749178710409,6.87399427,146.48,146.45,0.05053757]
[1749178710612,4.97677691,146.48,146.45,0.05053757]
[1749178710907,6.8253,146.46,146.45,0.05053757]
[1749178711100,45.8853,146.46,146.45,0.05053757]
[1749178713708,45.8853,146.46,146.38,43.5354]
[1749178713910,45.8853,146.46,146.41,11.75498264]
[1749178714207,6.8258,146.45,146.41,11.75498264]
[1749178714411,39.06,146.46,146.42,6.8269]
[1749178714609,2.1512,146.49,146.45,4.92748264]
[1749178714914,0.05219917,146.48,146.47,4.92748264]
[1749178715615,0.05219917,146.48,146.47,11.75198264]
[1749178719220,0.05219917,146.48,146.46,6.87773317]
[1749178719421,0.05219917,146.48,146.47,4.92748264]
[1749178720219,0.05219917,146.48,146.46,0.05253317]
[1749178727926,0.05219917,146.48,146.46,6.87783317]
[1749178730122,0.05219917,146.48,146.46,4.98001581]
[1749178730326,0.05219917,146.48,146.47,6.8249]
[1749178731225,0.05219917,146.48,146.46,11.80521581]
[1749178731729,0.05219917,146.48,146.47,6.8249]
[1749178732830,0.05219917,146.48,146.47,11.75238264]
[1749178736643,0.05219917,146.48,146.47,6.8249]
[1749178736844,0.05219917,146.48,146.47,11.75238264]
[1749178738148,38.12,146.53,146.5,6.8234]
[1749178738338,38.12,146.53,146.5,11.75088264]
[1749178739146,38.16403217,146.53,146.5,11.80206544]
[1749178739344,44.98643217,146.53,146.5,6.8745828]
[1749178743747,44.98643217,146.53,146.5,0.0511828]
[1749178745350,44.98643217,146.53,146.5,6.8745828]
[1749178745550,38.16403217,146.53,146.5,0.0511828]
[1749178746249,38.16403217,146.53,146.51,6.823]
[1749178746546,0.04403217,146.53,146.51,4.92748264]
[1749178746751,0.04403217,146.53,146.52,6.8225]
[1749178751251,38.1,146.56,146.55,6.8211]
[1749178751456,38.1,146.59,146.55,11.74858264]
[1749178751654,13.66221473,146.58,146.55,11.74858264]
[1749178751954,5.90257507,146.57,146.55,11.74858264]
[1749178752247,0.04686207,146.57,146.55,11.7953881]
[1749178752841,0.04686207,146.57,146.56,6.8207]
[1749178754348,4.4318,146.62,146.58,6.8196]
[1749178754549,5.89064348,146.61,146.58,11.74708264]
[1749178754749,9.24340766,146.62,146.58,11.74708264]
[1749178754956,5.89201288,146.61,146.58,11.74708264]
[1749178755150,9.24340561,146.62,146.58,11.74708264]
[1749178755354,0.04365901,146.61,146.59,0.04309385]
[1749178756057,6.86205901,146.61,146.59,0.04309385]
[1749178756257,0.04365901,146.61,146.59,0.04309385]
[1749178756553,38.14365901,146.61,146.59,0.04309385]
[1749178756955,6.8188,146.6,146.59,0.04309385]
[1749178757351,12.67649814,146.6,146.59,0.04309385]
[1749178757647,6.8188,146.6,146.59,0.04309385]
[1749178758951,44.96205901,146.61,146.59,0.04309385]
[1749178759156,38.14365901,146.61,146.59,0.04309385]
[1749178759555,6.8188,146.6,146.59,0.04309385]
[1749178764758,6.82,146.58,146.54,4.92748264]
[1749178764961,4.92748264,146.6,146.51,44.6258]
[1749178765151,4.92748264,146.6,146.54,4.92748264]
[1749178765347,10.79656519,146.6,146.54,11.74908264]
[1749178765755,0.04669856,146.58,146.56,0.04785655]
[1749178766657,6.86669856,146.58,146.56,0.04785655]
[1749178767754,0.04669856,146.58,146.56,4.97533919]
[1749178769260,0.04669856,146.58,146.56,11.79593919]
[1749178771360,0.04669856,146.58,146.57,6.8202]
[1749178771559,0.04669856,146.58,146.56,4.97533919]
[1749178772060,0.04669856,146.58,146.56,11.79593919]
[1749178772360,0.04669856,146.58,146.56,4.97533919]
[1749178772760,0.04669856,146.58,146.56,11.79583919]
[1749178776050,0.04669856,146.58,146.56,6.86835655]
[1749178776255,0.04669856,146.58,146.57,11.74768264]
[1749178776455,0.04669856,146.58,146.56,0.04785655]
[1749178776657,0.04669856,146.58,146.57,4.92748264]
[1749178778162,0.04669856,146.58,146.56,6.86815655]
[1749178778362,0.04669856,146.58,146.57,4.92748264]
[1749178779165,0.04669856,146.58,146.57,6.8202]
[1749178779365,0.04669856,146.58,146.57,11.74768264]
[1749178779671,0.04669856,146.58,146.57,6.8202]
[1749178781459,0.04669856,146.58,146.56,6.86835655]
[1749178781660,0.04669856,146.58,146.56,11.79583919]
[1749178783464,6.86649856,146.58,146.56,0.04785655]
[1749178784070,0.04669856,146.58,146.56,0.04785655]
[1749178785254,0.04669856,146.58,146.56,4.97533919]
[1749178786166,0.04669856,146.58,146.56,0.04785655]
[1749178788765,0.04669856,146.58,146.56,6.86855655]
[1749178789367,0.04669856,146.58,146.56,0.04785655]
[1749178789768,6.86649856,146.58,146.56,0.04785655]
[1749178790465,13.75515627,146.57,146.56,0.04785655]
[1749178790968,13.75515971,146.57,146.56,0.04785655]
[1749178791168,13.75519076,146.57,146.56,0.04785655]
[1749178791470,13.75519689,146.57,146.56,0.04785655]
[1749178792166,13.75534428,146.57,146.56,0.04785655]
[1749178792371,10.75919556,146.57,146.56,0.04785655]
[1749178792563,13.75527429,146.57,146.56,0.04785655]
[1749178792764,10.75948375,146.57,146.56,0.04785655]
[1749178792968,13.75528473,146.57,146.56,0.04785655]
[1749178793267,13.75261124,146.57,146.56,0.04785655]
[1749178793670,10.75681026,146.57,146.56,0.04785655]
[1749178793869,13.75443944,146.57,146.56,0.04785655]
[1749178794371,13.7543849,146.57,146.56,0.04785655]
[1749178795570,10.75673909,146.57,146.56,0.04785655]
[1749178795875,13.75777222,146.57,146.56,0.04785655]
[1749178796967,13.75777224,146.57,146.56,0.04785655]
[1749178797168,10.75816066,146.57,146.56,3.17478782]
[1749178797371,13.75775424,146.57,146.56,3.17478782]
[1749178797569,5.90298974,146.57,146.56,3.17478782]
[1749178797769,13.75390314,146.57,146.56,3.17478782]
[1749178797970,13.75390503,146.57,146.56,3.17478782]
[1749178798374,13.75390503,146.57,146.56,9.99548782]
[1749178798571,10.75962294,146.57,146.56,3.17478782]
[1749178798768,13.75334149,146.57,146.56,3.17478782]
[1749178799169,13.75434077,146.57,146.56,3.17478782]
[1749178799777,13.75449062,146.57,146.56,3.17478782]
[1749178800467,13.75448101,146.57,146.56,3.17478782]
[1749178800672,13.75445778,146.57,146.56,9.99548782]
[1749178800866,13.75478908,146.57,146.56,9.99548782]
[1749178801066,10.76092289,146.57,146.56,3.17478782]
[1749178801269,13.7550013,146.57,146.56,0.04785655]
[1749178802374,13.7550013,146.57,146.56,11.75413133]
[1749178802567,0.04669856,146.58,146.56,4.93343133]
[1749178802972,5.92039956,146.57,146.56,4.93343133]
[1749178803279,5.92039956,146.57,146.56,11.75393133]
[1749178803576,5.92039956,146.57,146.56,4.93343133]
[1749178803778,5.92039956,146.57,146.56,0.04785655]
[1749178803974,8.91976648,146.57,146.56,0.04785655]
[1749178804171,6.8215,146.55,146.53,4.88557478]
[1749178804368,5.92039956,146.54,146.51,13.92657478]
[1749178804570,6.8215,146.55,146.51,7.10357478]
[1749178804777,13.76658842,146.54,146.52,6.8221]
[1749178804977,6.3578584,146.57,146.51,7.10357478]
[1749178804978,5.92562774,146.53,146.51,7.10357478]
[1749178805277,0.04793403,146.53,146.51,7.15546449]
[1749178805478,0.04793403,146.53,146.51,13.97816449]
[1749178806073,0.04793403,146.53,146.51,4.93746449]
[1749178806473,6.0393569,146.52,146.51,4.93746449]
[1749178806681,6.0393569,146.52,146.51,11.76046449]
[1749178807378,0.04793403,146.53,146.52,6.8225]
[1749178807578,6.08507623,146.53,146.52,6.8225]
[1749178808284,6.08507623,146.53,146.51,6.87468971]
[1749178808581,6.0371422,146.52,146.51,0.05188971]
[1749178809174,0.04793403,146.53,146.51,0.05188971]
[1749178809977,6.03195144,146.52,146.51,0.05188971]
[1749178810179,13.84309454,146.52,146.46,4.88557478]
[1749178810376,20.66680213,146.51,146.46,4.88557478]
[1749178810680,47.83804847,146.5,146.46,6.8252]
[1749178810873,6.03195144,146.49,146.46,6.8252]
[1749178811078,13.84138596,146.48,146.44,4.88557478]
[1749178811279,0.04780817,146.47,146.45,0.04649699]
[1749178811484,0.04780817,146.47,146.45,6.87199699]
[1749178811683,0.04780817,146.47,146.45,0.04649699]
[1749178812081,0.04780817,146.47,146.45,6.87219699]
[1749178812577,0.04780817,146.47,146.45,0.04649699]
[1749178812779,0.04780817,146.47,146.45,4.93207177]
[1749178812982,0.04780817,146.47,146.45,0.04649699]
[1749178813189,0.04780817,146.47,146.46,4.88557478]
[1749178813375,0.04780817,146.47,146.46,11.71087478]
[1749178814281,0.04780817,146.47,146.46,6.8253]
[1749178814587,0.04780817,146.47,146.46,11.71087478]
[1749178815182,0.04780817,146.47,146.46,6.8253]
[1749178816085,0.04780817,146.47,146.45,11.75787177]
[1749178816483,0.04780817,146.47,146.45,4.93207177]
[1749178816683,0.04780817,146.47,146.45,6.87209699]
[1749178816889,0.04780817,146.47,146.45,11.75767177]
[1749178817088,0.04780817,146.47,146.45,6.87209699]
[1749178817287,0.04780817,146.47,146.45,11.75767177]
[1749178818088,0.04780817,146.47,146.45,0.04649699]
[1749178820383,0.04780817,146.47,146.46,4.88557478]
[1749178820584,37.0,146.56,146.51,4.88557478]
[1749178820784,5.99353004,146.55,146.52,6.8225]
[1749178821090,37.0,146.56,146.51,4.88557478]
[1749178821489,0.04772821,146.55,146.52,6.87239688]
[1749178821688,0.04772821,146.55,146.52,11.75797166]
[1749178822078,0.04772821,146.55,146.53,6.8221]
[1749178823387,0.04772821,146.55,146.53,11.70767478]
[1749178823886,5.99505148,146.54,146.52,0.04999688]
[1749178824086,7.0666828,146.55,146.52,0.04999688]
[1749178824291,5.9951436,146.54,146.52,0.04999688]
[1749178824487,7.09930994,146.55,146.52,0.04999688]
[1749178824690,6.0052563,146.54,146.52,0.04999688]
[1749178824890,10.03243112,146.55,146.52,0.04999688]
[1749178825192,6.00491158,146.54,146.52,0.04999688]
[1749178825393,6.8219,146.54,146.52,0.04999688]
[1749178825994,6.00865841,146.53,146.52,0.04999688]
[1749178826288,12.83075841,146.53,146.52,0.04999688]
[1749178826493,2.33632821,146.55,146.52,4.93557166]
[1749178826688,9.15782821,146.55,146.52,4.93557166]
[1749178827096,6.8221,146.53,146.52,0.04999688]
[1749178827394,6.00936323,146.54,146.52,0.04999688]
[1749178827593,2.33632821,146.55,146.52,0.04999688]
[1749178827894,12.83109351,146.54,146.52,0.04999688]
[1749178828086,6.8217,146.54,146.52,0.04999688]
[1749178829997,6.8221,146.53,146.52,0.04999688]
[1749178831191,12.8337077,146.53,146.52,0.04999688]
[1749178831393,6.0116077,146.53,146.52,0.04999688]
[1749178831593,5.28936398,146.55,146.52,0.04999688]
[1749178831792,8.96474529,146.54,146.52,0.04999688]
[1749178831993,10.02535217,146.55,146.52,0.04999688]
[1749178832195,6.01168321,146.54,146.52,0.04999688]
[1749178832395,5.28994573,146.55,146.52,4.93557166]
[1749178832697,9.15782821,146.55,146.52,4.93557166]
[1749178833092,2.33632821,146.55,146.52,4.93557166]
[1749178833294,6.8216,146.54,146.52,4.93557166]
[1749178835195,6.01393738,146.53,146.52,0.04999688]
[1749178835593,6.8216,146.54,146.52,0.04999688]
[1749178835795,6.01419021,146.53,146.52,0.04999688]
[1749178835994,6.8216,146.54,146.52,0.04999688]
[1749178837192,6.01552425,146.53,146.52,0.04999688]
[1749178837496,12.83762425,146.53,146.52,0.04999688]
[1749178837694,12.8380532,146.53,146.52,0.04999688]
[1749178837895,6.0159532,146.53,146.48,4.88557478]
[1749178838093,6.8228,146.52,146.48,11.70957478]
[1749178838396,6.8228,146.52,146.48,4.88557478]
[1749178838590,6.8228,146.52,146.48,11.70977478]
[1749178838792,0.04966367,146.51,146.49,0.05043861]
[1749178839392,6.87306367,146.51,146.49,0.05043861]
[1749178840394,0.04966367,146.51,146.49,0.05043861]
[1749178843111,6.87266367,146.51,146.49,0.05043861]
[1749178843704,12.86058711,146.5,146.49,0.05043861]
[1749178843908,6.03708711,146.5,146.43,37.14]
[1749178844104,6.03708711,146.49,146.45,4.88557478]
[1749178844308,2.9565756,146.5,146.45,11.71107478]
[1749178844503,6.03481282,146.49,146.45,11.71107478]
[1749178844801,6.8242,146.49,146.45,11.71107478]
[1749178845002,0.04875926,146.48,146.46,0.04824443]
[1749178846906,6.8249,146.47,146.46,0.04824443]
[1749178847207,12.85895323,146.47,146.46,0.04824443]
[1749178848313,6.03405323,146.47,146.46,0.04824443]
[1749178849710,12.85895323,146.47,146.46,0.04824443]
[1749178849911,6.03405323,146.47,146.46,0.04824443]
[1749178853113,6.03405323,146.47,146.46,6.87354443]
[1749178853511,6.03405323,146.47,146.46,0.04824443]
[1749178856015,12.85895323,146.47,146.46,0.04824443]
[1749178856218,6.03405323,146.47,146.42,4.88557478]
[1749178856418,37.14,146.48,146.44,4.88557478]
[1749178856716,6.04106235,146.47,146.45,6.8257]
[1749178857020,43.9645,146.48,146.45,6.8257]
[1749178857210,6.04106235,146.47,146.45,0.04975501]
[1749178857414,44.00968361,146.48,146.45,0.04975501]
[1749178857615,6.04749787,146.47,146.45,0.04975501]
[1749178857815,44.00968361,146.48,146.45,0.04975501]
[1749178858016,6.04740007,146.47,146.45,0.04975501]
[1749178858215,44.00968361,146.48,146.45,6.87555501]
[1749178858412,6.04696643,146.47,146.45,6.87555501]
[1749178858612,44.00968361,146.48,146.45,6.87555501]
[1749178858813,6.04707049,146.47,146.45,6.87555501]
[1749178859014,44.00968361,146.48,146.45,0.04975501]
[1749178859214,12.86984989,146.47,146.45,0.04975501]
[1749178859414,6.8249,146.47,146.45,0.04975501]
[1749178860516,37.18518361,146.48,146.45,0.04975501]
[1749178860816,6.04377144,146.47,146.45,0.04975501]
[1749178861119,6.04377144,146.46,146.45,0.04975501]
[1749178861309,6.8251,146.47,146.45,0.04975501]
[1749178864023,12.87289084,146.46,146.45,0.04975501]
[1749178864223,6.04759084,146.46,146.42,6.827]
[1749178864421,7.65590034,146.47,146.37,434.36557478]
[1749178864619,6.0476034,146.46,146.4,4.88557478]
[1749178864819,6.0476034,146.45,146.41,6.8275]
[1749178865021,6.8263,146.44,146.4,4.88557478]
[1749178865321,0.04507197,146.43,146.41,0.04866639]
[1749178865720,6.87187197,146.43,146.41,0.04866639]
[1749178867119,0.04507197,146.43,146.41,0.04866639]
[1749178867520,6.87187197,146.43,146.41,0.04866639]
[1749178872519,6.8272,146.42,146.41,0.04866639]
[1749178873822,0.04507197,146.43,146.41,0.04866639]
[1749178874425,0.04507197,146.43,146.42,6.8272]
[1749178874628,6.04731692,146.46,146.41,4.93424117]
[1749178874824,36.58,146.47,146.44,11.71157478]
[1749178875224,36.58,146.47,146.44,4.88557478]
[1749178875626,36.63127934,146.47,146.44,4.9304491]
[1749178876129,36.63127934,146.47,146.45,6.8258]
[1749178877732,36.63127934,146.47,146.44,11.7565491]
[1749178878634,36.63127934,146.47,146.45,6.8257]
[1749178879229,36.63127934,146.47,146.44,11.7565491]
[1749178880235,43.45617934,146.47,146.44,11.7565491]
[1749178880434,0.05127934,146.47,146.44,0.04487432]
[1749178880629,6.06721916,146.46,146.44,0.04487432]
[1749178880825,6.06721916,146.45,146.44,0.04487432]
[1749178881233,6.06885304,146.45,146.44,0.04487432]
[1749178881731,13.89456856,146.45,146.38,41.46557478]
[1749178881935,6.06885304,146.44,146.38,41.46557478]
[1749178882138,6.8273,146.42,146.39,6.8283]
[1749178882437,4.88557478,146.45,146.38,41.46557478]
[1749178882731,0.04825705,146.43,146.4,4.93361702]
[1749178883332,0.04825705,146.43,146.42,4.88557478]
[1749178883931,0.04825705,146.43,146.41,2.0958]
[1749178884631,0.04825705,146.43,146.41,4.88557478]
[1749178884936,0.04825705,146.43,146.4,0.04804224]
[1749178885730,6.8272,146.42,146.4,0.04804224]
[1749178887537,6.8276,146.41,146.4,0.04804224]
[1749178887740,12.91870979,146.41,146.4,0.04804224]
[1749178889936,9.03974245,146.41,146.34,11.45687478]
[1749178890143,13.92541167,146.4,146.32,36.58]
[1749178890344,6.09110979,146.39,146.33,11.71657478]
[1749178890542,6.8298,146.37,146.33,11.71657478]
[1749178890743,6.8298,146.37,146.33,4.88557478]
[1749178891044,0.04991678,146.36,146.34,0.04746966]
[1749178891346,6.88021678,146.36,146.34,0.04746966]
[1749178893139,0.04991678,146.36,146.34,0.04746966]
[1749178894038,0.04991678,146.36,146.35,4.88557478]
[1749178894448,0.04991678,146.36,146.35,11.71597478]
[1749178894947,0.04991678,146.36,146.34,0.04746966]
[1749178896350,6.88021678,146.36,146.34,0.04746966]
[1749178897643,6.8304,146.35,146.34,0.04746966]
[1749178897846,0.04991678,146.36,146.34,0.04746966]
[1749178898449,6.88021678,146.36,146.34,0.04746966]
[1749178899449,0.04991678,146.36,146.34,0.04746966]
[1749178900859,6.87991678,146.36,146.34,0.04746966]
[1749178903554,6.8304,146.35,146.34,0.04746966]
[1749178905461,12.88082336,146.35,146.34,0.04746966]
[1749178906357,12.88087695,146.35,146.34,0.04746966]
[1749178906554,6.8304,146.35,146.34,0.04746966]
[1749178907153,12.87921722,146.35,146.34,0.04746966]
[1749178908155,6.04881722,146.35,146.29,4.88557478]
[1749178908359,36.6,146.34,146.29,4.88557478]
[1749178908657,36.6,146.34,146.29,11.71857478]
[1749178909055,0.04319629,146.33,146.3,0.04833452]
[1749178910458,6.87469629,146.33,146.3,0.04833452]
[1749178911364,6.8319,146.32,146.3,0.04833452]
[1749178912562,0.04319629,146.33,146.3,6.88103452]
[1749178912956,0.04319629,146.33,146.3,0.04833452]
[1749178913456,0.04319629,146.33,146.31,6.8322]
[1749178914350,0.04319629,146.33,146.3,6.88093452]
[1749178914554,0.04319629,146.33,146.3,0.04833452]
[1749178914960,0.04319629,146.33,146.31,6.832]
[1749178916763,6.87469629,146.33,146.3,0.04833452]
[1749178916965,0.04319629,146.33,146.3,0.04833452]
[1749178917365,0.04319629,146.33,146.3,6.88103452]
[1749178917664,0.04319629,146.33,146.3,0.04833452]
[1749178918466,0.04319629,146.33,146.3,6.88093452]
[1749178918665,6.87459629,146.33,146.3,6.88093452]
[1749178918867,6.87459629,146.33,146.3,0.04833452]
[1749178919762,0.04319629,146.33,146.3,0.04833452]
[1749178920070,6.8319,146.32,146.3,0.04833452]
[1749178920465,6.87469629,146.33,146.3,0.04833452]
[1749178921273,6.832,146.32,146.3,0.04833452]
[1749178922371,6.8323,146.31,146.3,0.04833452]
[1749178923665,4.88557478,146.32,146.26,4.88557478]
[1749178924072,4.88557478,146.32,146.26,11.72017478]
[1749178924369,4.88557478,146.32,146.26,4.88557478]
[1749178924572,10.92030731,146.32,146.26,4.88557478]
[1749178924768,0.04480607,146.3,146.28,0.04373977]
[1749178925365,6.87790607,146.3,146.28,0.04373977]
[1749178925566,43.45790607,146.3,146.28,0.04373977]
[1749178925767,36.62480607,146.3,146.28,0.04373977]
[1749178925971,0.04480607,146.3,146.28,0.04373977]
[1749178926168,0.04480607,146.3,146.29,4.88557478]
[1749178926968,0.04480607,146.3,146.28,0.04373977]
[1749178927377,0.04480607,146.3,146.28,6.87713977]
[1749178927875,0.04480607,146.3,146.29,4.88557478]
[1749178928170,0.04480607,146.3,146.29,11.71877478]
[1749178928871,0.04480607,146.3,146.29,4.88557478]
[1749178929272,0.04480607,146.3,146.28,0.04373977]
[1749178935283,0.04480607,146.3,146.29,11.71877478]
[1749178937179,0.04480607,146.3,146.29,6.8332]
[1749178937478,0.04480607,146.3,146.29,11.71877478]
[1749178947989,0.04480607,146.3,146.29,6.8332]
[1749178948192,0.04480607,146.3,146.29,11.71877478]
[1749178949485,0.04480607,146.3,146.29,4.88557478]
[1749178950888,0.04480607,146.3,146.29,11.71877478]
[1749178952183,0.04480607,146.3,146.29,4.88557478]
[1749178952386,6.15004009,146.3,146.29,4.88557478]
[1749178957695,0.04480607,146.3,146.29,4.88557478]
[1749178959496,0.04480607,146.3,146.28,0.04373977]
[1749178959698,0.04480607,146.3,146.29,4.88557478]
[1749178959892,6.12940502,146.3,146.28,0.04373977]
[1749178960190,12.91779895,146.29,146.28,0.04373977]
[1749178960390,6.08459895,146.29,146.28,0.04373977]
[1749178960597,9.00174835,146.29,146.28,0.04373977]
[1749178961290,9.00159531,146.29,146.28,0.04373977]
[1749178961493,6.08459895,146.29,146.28,0.04373977]
[1749178961699,9.00162083,146.29,146.28,0.04373977]
[1749178961895,8.99227238,146.29,146.28,0.04373977]
[1749178962094,6.08459895,146.29,146.28,0.04373977]
[1749178963099,8.99182013,146.29,146.28,0.04373977]
[1749178963302,6.08459895,146.29,146.28,0.04373977]
[1749178969810,8.99080922,146.29,146.28,0.04373977]
[1749178970208,8.99197667,146.29,146.28,0.04373977]
[1749178970607,12.91779895,146.29,146.28,0.04373977]
[1749178970808,15.82517667,146.29,146.28,0.04373977]
[1749178971111,12.91779895,146.29,146.28,0.04373977]
[1749178972414,12.91779895,146.29,146.23,36.52]
[1749178972415,6.8343,146.27,146.23,36.52]
[1749178972614,6.8343,146.27,146.24,4.88557478]
[1749178973420,6.88104824,146.27,146.26,3.14026822]
[1749178973611,12.95089507,146.27,146.26,3.14026822]
[1749178974509,6.8346,146.26,146.25,3.14026822]
[1749178974714,6.8346,146.26,146.24,0.04725999]
[1749178975016,6.8346,146.26,146.25,3.14026822]
[1749178975206,6.8346,146.26,146.24,4.95425202]
[1749178975514,6.835,146.25,146.24,4.95425202]
[1749178976514,6.835,146.25,146.24,0.04725999]
[1749178976916,6.8347,146.26,146.24,0.04725999]
[1749178977308,0.04674824,146.27,146.24,0.04725999]
[1749178977506,6.88114824,146.27,146.24,0.04725999]
[1749178978211,6.8346,146.26,146.24,0.04725999]
[1749178980015,6.8346,146.26,146.24,4.95425202]
[1749178980616,6.88084824,146.27,146.24,4.95425202]
[1749178980816,6.05515375,146.26,146.24,4.95425202]
[1749178981017,0.04674824,146.27,146.24,4.95425202]
[1749178981218,6.05098086,146.26,146.24,4.95425202]
[1749178981413,0.04674824,146.27,146.24,4.95425202]
[1749178981613,6.04973474,146.26,146.24,4.95425202]
[1749178981813,6.88074824,146.27,146.24,4.95425202]
[1749178982009,6.04962937,146.26,146.24,4.95425202]
[1749178982313,6.88074824,146.27,146.24,4.95425202]
[1749178982617,6.04862714,146.26,146.24,4.95425202]
[1749178982816,6.88074824,146.27,146.24,4.95425202]
[1749178983117,6.04837183,146.26,146.24,4.95425202]
[1749178983306,6.88074824,146.27,146.24,4.95425202]
[1749178983509,6.04750328,146.26,146.24,4.95425202]
[1749178983710,6.88074824,146.27,146.24,4.95425202]
[1749178983912,6.04733847,146.26,146.24,4.95425202]
[1749178984206,6.88074824,146.27,146.24,4.95425202]
[1749178984407,6.04658455,146.26,146.24,4.95425202]
[1749178984605,6.88074824,146.27,146.24,4.95425202]
[1749178984819,6.04655282,146.26,146.24,4.95425202]
[1749178985017,6.88074824,146.27,146.24,4.95425202]
[1749178985516,6.88074824,146.27,146.24,11.78945202]
[1749178986217,6.88074824,146.27,146.24,4.95425202]
[1749178986612,6.88074824,146.27,146.24,0.04725999]
[1749178986811,6.8343,146.26,146.24,4.95425202]
[1749178988209,0.04674824,146.27,146.24,4.95425202]